bitfinex-derivatives/quotes_ETHF0:USTF0_20230701
["timestamp","ask_amount","ask_price","bid_price","bid_amount"]
[1688175265395,4.14046,1930.6,1930.5,4.97887]
[1688175271100,4.14046,1930.6,1930.5,4.668]
[1688175271297,4.14046,1930.6,1930.5,4.97883]
[1688175271500,4.14046,1930.6,1930.5,4.668]
[1688175271902,4.14046,1930.6,1930.5,4.97884]
[1688175272203,4.14046,1930.6,1930.5,4.93384]
[1688175273213,5.69052288,1930.6,1930.5,4.93384]
[1688175273710,5.69052288,1930.6,1930.4,5.80408047]
[1688175274604,5.69052288,1930.6,1930.5,4.661]
[1688175274806,5.69052288,1930.6,1930.5,4.97184]
[1688175275005,5.69052288,1930.6,1930.5,4.661]
[1688175275205,5.69052288,1930.6,1930.4,5.78808047]
[1688175279611,5.69052288,1930.6,1930.4,3.82941854]
[1688175279813,1.16504047,1930.5,1930.4,3.82941854]
[1688175280118,5.81504047,1930.5,1930.3,0.41520892]
[1688175280319,3.2078,1930.4,1930.2,4.623]
[1688175280505,0.31087,1930.3,1930.2,4.623]
[1688175280816,0.31087,1930.3,1930.2,5.33368111]
[1688175281219,0.31087,1930.3,1930.2,5.64457111]
[1688175282124,0.31087,1930.3,1930.2,5.08496476]
[1688175282416,1.16507047,1930.3,1930.2,4.661]
[1688175283211,1.16507047,1930.3,1930.2,4.94771635]
[1688175283720,1.16507047,1930.3,1930.2,4.661]
[1688175284018,1.16507047,1930.3,1930.1,0.40718449]
[1688175284019,5.81507047,1930.3,1930.1,0.40718449]
[1688175284221,3.2078,1930.2,1930.1,0.40718449]
[1688175284418,3.51869,1930.2,1930.0,0.00777142]
[1688175284614,5.52220047,1930.1,1930.0,0.00777142]
[1688175284826,5.83311047,1930.1,1929.6,4.623]
[1688175285011,4.66,1929.7,1929.5,7.9444]
[1688175285328,4.66,1929.7,1929.5,0.40609332]
[1688175285329,1.16519047,1929.6,1929.5,0.40609332]
[1688175285517,1.16519047,1929.6,1929.5,1.00380967]
[1688175285818,0.87847412,1929.6,1929.5,0.59771635]
[1688175286319,5.82419047,1929.6,1929.5,0.59771635]
[1688175286517,5.82419047,1929.6,1929.5,0.311]
[1688175291924,0.31099,1929.6,1929.5,5.26571635]
[1688175292720,0.31099,1929.6,1929.5,5.49242877]
[1688175294225,0.59770635,1929.6,1929.5,0.43371242]
[1688175297128,0.59770635,1929.6,1929.5,0.72042877]
[1688175297425,0.31099,1929.6,1929.5,0.72042877]
[1688175298621,0.59770635,1929.6,1929.5,0.72042877]
[1688175299826,0.59770635,1929.6,1929.5,0.43371242]
[1688175301530,0.59770635,1929.6,1929.5,0.59771635]
[1688175301833,0.31099,1929.6,1929.5,5.25871635]
[1688175302326,0.31103,1929.6,1929.5,5.25871635]
[1688175306029,5.58664383,1929.7,1929.5,5.25871635]
[1688175306030,0.00777383,1929.7,1929.5,5.25871635]
[1688175306329,0.00777383,1929.7,1929.6,5.20648412]
[1688175306532,0.00777383,1929.7,1929.6,5.51750412]
[1688175306938,0.31879383,1929.7,1929.6,5.51750412]
[1688175307635,0.00777383,1929.7,1929.6,5.62150412]
[1688175308829,0.00777383,1929.7,1929.6,5.51750412]
[1688175310635,0.31877383,1929.7,1929.6,5.51750412]
[1688175310832,0.60549018,1929.7,1929.6,4.95002]
[1688175311143,0.31877383,1929.7,1929.6,4.95002]
[1688175313133,0.60549018,1929.7,1929.6,4.95002]
[1688175313541,3.81329018,1929.7,1929.5,0.77756]
[1688175313842,3.81329018,1929.7,1929.6,0.31102]
[1688175314440,4.3807743,1929.7,1929.6,0.31102]
[1688175315140,4.3807743,1929.7,1929.5,0.77756]
[1688175317140,4.659,1929.6,1929.4,0.41930108]
[1688175317440,4.37304047,1929.5,1929.4,0.73035108]
[1688175318536,4.37304047,1929.5,1929.4,0.41930108]
[1688175318939,4.37304047,1929.5,1929.4,0.73035108]
[1688175319245,1.16524047,1929.5,1929.4,0.73035108]
[1688175319446,0.31104,1929.5,1929.4,1.01706743]
[1688175319944,0.59775635,1929.5,1929.4,1.01706743]
[1688175320541,0.59775635,1929.5,1929.4,0.73035108]
[1688175321046,0.31104,1929.5,1929.4,1.01706743]
[1688175322142,0.59775635,1929.5,1929.4,0.73035108]
[1688175322340,3.80555635,1929.5,1929.4,0.73035108]
[1688175322539,3.80555635,1929.5,1929.4,0.41930108]
[1688175322949,3.80555635,1929.5,1929.4,0.73035108]
[1688175324246,3.51884,1929.5,1929.4,1.58455155]
[1688175324841,0.7776,1929.6,1929.4,6.25255155]
[1688175326049,0.31879383,1929.7,1929.4,6.25255155]
[1688175326250,0.31879383,1929.7,1929.6,4.97202]
[1688175326447,0.31879383,1929.7,1929.6,5.82622047]
[1688175331168,0.60551018,1929.7,1929.6,0.87850412]
[1688175332471,0.60940318,1929.7,1929.6,0.87850412]
[1688175332868,0.60940318,1929.7,1929.6,0.31102]
[1688175333474,0.60940318,1929.7,1929.6,0.59773635]
[1688175337577,0.60940318,1929.7,1929.6,1.01893619]
[1688175337973,0.32268683,1929.7,1929.6,1.01893619]
[1688175338881,0.60940318,1929.7,1929.6,1.01893619]
[1688175340578,1.53352435,1929.7,1929.6,0.73221984]
[1688175340777,4.74132435,1929.7,1929.6,0.73221984]
[1688175341483,4.74132435,1929.7,1929.6,1.01893619]
[1688175342083,4.74132435,1929.7,1929.6,0.73221984]
[1688175342380,3.81720318,1929.7,1929.6,0.73221984]
[1688175343271,3.53048683,1929.7,1929.6,1.01893619]
[1688175343977,3.81720318,1929.7,1929.6,1.01893619]
[1688175344178,3.81720318,1929.7,1929.6,0.73221984]
[1688175346276,3.81720318,1929.7,1929.6,1.01893619]
[1688175346884,0.32268683,1929.7,1929.6,1.01893619]
[1688175348282,0.32268683,1929.7,1929.6,5.68693619]
[1688175348482,0.01166683,1929.7,1929.6,5.68693619]
[1688175348674,0.07535344,1929.7,1929.6,5.68693619]
[1688175348878,0.12939034,1929.7,1929.6,5.68693619]
[1688175350486,0.44039034,1929.7,1929.6,5.68693619]
[1688175352481,0.12939034,1929.7,1929.6,5.68693619]
[1688175352990,0.44039034,1929.7,1929.6,5.68693619]
[1688175354993,0.12939034,1929.7,1929.6,5.68693619]
[1688175355300,0.44039034,1929.7,1929.6,5.68693619]
[1688175357398,0.12939034,1929.7,1929.6,5.68693619]
[1688175357598,0.44039034,1929.7,1929.6,5.68693619]
[1688175361490,0.44040034,1929.7,1929.6,5.68693619]
[1688175363002,0.72711669,1929.7,1929.6,5.68693619]
[1688175365199,3.93491669,1929.7,1929.6,5.40021984]
[1688175366308,6.93491669,1929.7,1929.6,5.40021984]
[1688175368501,6.93491669,1929.7,1929.6,5.39321984]
[1688175369400,12.11321669,1929.7,1929.6,5.39321984]
[1688175370407,13.03733786,1929.7,1929.6,5.39321984]
[1688175371107,13.03733786,1929.7,1929.6,5.08219984]
[1688175371607,17.69733786,1929.7,1929.6,0.42119984]
[1688175371806,17.69733786,1929.7,1929.5,0.31105]
[1688175372003,6.46263529,1929.6,1929.4,1.5924676]
[1688175372204,0.31106,1929.4,1929.1,6.50965301]
[1688175372398,0.31106,1929.4,1929.1,4.9341]
[1688175372399,3.5189,1929.2,1929.1,4.9341]
[1688175372601,3.80561635,1929.2,1929.1,4.9341]
[1688175373507,3.80943719,1929.2,1929.1,4.9341]
[1688175374208,3.80943719,1929.2,1929.1,5.35924024]
[1688175375705,8.57143719,1929.2,1929.1,0.42514024]
[1688175376108,8.57143719,1929.2,1929.0,0.00777545]
[1688175376308,0.56748412,1929.1,1929.0,0.00777545]
[1688175376608,0.87860412,1929.1,1929.0,0.00777545]
[1688175377508,0.88241504,1929.1,1929.0,0.42012138]
[1688175377815,0.88241504,1929.1,1929.0,0.00777545]
[1688175380922,0.88241504,1929.1,1929.0,0.3901646]
[1688175383019,0.88241504,1929.1,1929.0,0.0790546]
[1688175383715,0.88241504,1929.1,1929.0,0.3901646]
[1688175385211,0.88241504,1929.1,1929.0,5.31588095]
[1688175385212,0.31493092,1929.1,1929.0,5.31588095]
[1688175386417,0.31493092,1929.1,1929.0,13.19168095]
[1688175386418,0.00382055,1929.1,1929.0,13.19168095]
[1688175386719,3.78533383,1929.7,1929.0,13.1204018]
[1688175387011,3.78533383,1929.7,1929.6,4.97902]
[1688175387012,3.00777383,1929.7,1929.6,4.97902]
[1688175387221,3.00777383,1929.7,1929.6,5.83322047]
[1688175387415,3.01120108,1929.7,1929.6,5.83322047]
[1688175387811,3.60891743,1929.7,1929.6,5.83322047]
[1688175388022,3.71091743,1929.7,1929.6,4.668]
[1688175388318,8.36991743,1929.7,1929.6,0.31102]
[1688175390018,0.102,1929.5,1929.3,0.93306]
[1688175390221,4.37305047,1929.4,1929.2,4.97905]
[1688175390424,9.62625279,1929.4,1929.2,4.97908]
[1688175392118,9.62625279,1929.4,1929.2,4.93408]
[1688175392324,9.72825279,1929.4,1929.2,4.93408]
[1688175394520,9.33953644,1929.4,1929.2,5.22079635]
[1688175395022,9.62625279,1929.4,1929.2,5.22079635]
[1688175395827,6.41845279,1929.4,1929.2,5.22079635]
[1688175396031,6.41845279,1929.4,1929.3,0.06558766]
[1688175396222,6.41845279,1929.4,1929.3,0.37666766]
[1688175402127,0.00340232,1929.4,1929.3,5.58315178]
[1688175402328,0.00340232,1929.4,1929.3,5.51756412]
[1688175402635,3.2078,1929.6,1929.3,5.51756412]
[1688175402832,3.2078,1929.6,1929.5,4.93404]
[1688175403128,3.00777383,1929.7,1929.5,4.93404]
[1688175403333,3.00777383,1929.7,1929.6,5.83323047]
[1688175403534,3.31878383,1929.7,1929.6,5.83323047]
[1688175403927,3.60550018,1929.7,1929.6,5.83323047]
[1688175404129,3.60550018,1929.7,1929.6,0.31103]
[1688175405130,4.52997722,1929.7,1929.6,0.31103]
[1688175406131,4.52997722,1929.7,1929.6,0.59774635]
[1688175406322,3.93225087,1929.7,1929.6,5.22074635]
[1688175406528,3.07301189,1929.7,1929.6,5.32474635]
[1688175406727,3.12706178,1929.7,1929.6,5.32474635]
[1688175408036,3.43805178,1929.7,1929.6,5.32474635]
[1688175408526,3.12706178,1929.7,1929.6,5.32474635]
[1688175412141,3.43806178,1929.7,1929.6,5.32474635]
[1688175413140,3.12706178,1929.7,1929.6,5.32474635]
[1688175414746,3.43806178,1929.7,1929.6,5.32474635]
[1688175415745,3.12706178,1929.7,1929.6,5.32474635]
[1688175419640,2.26962858,1930.1,1929.6,15.13174635]
[1688175419641,0.92468065,1930.1,1929.6,15.13174635]
[1688175419848,0.77739,1930.3,1930.1,0.31094]
[1688175420036,0.77739,1930.3,1930.2,5.26563635]
[1688175420240,0.77739,1930.3,1930.2,5.83312047]
[1688175421043,1.06410635,1930.3,1930.2,5.54640412]
[1688175421241,0.77739,1930.3,1930.2,5.83312047]
[1688175425745,0.00777008,1930.4,1930.2,5.83312047]
[1688175425951,0.00777008,1930.4,1930.3,4.661]
[1688175426252,0.00777008,1930.4,1930.3,4.97191]
[1688175427154,0.21949857,1930.4,1930.3,4.97191]
[1688175429154,0.21949857,1930.4,1930.3,9.70591]
[1688175429343,11.8933096,1930.7,1930.3,9.70591]
[1688175429344,5.1614,1930.7,1930.3,9.70591]
[1688175429551,5.1614,1930.7,1930.6,4.661]
[1688175429752,5.1614,1930.7,1930.6,5.25856635]
[1688175430154,5.1614,1930.7,1930.6,5.82605047]
[1688175437055,5.45491756,1930.7,1930.6,5.82605047]
[1688175438968,5.45491756,1930.7,1930.6,6.23767196]
[1688175439567,6.05247391,1930.7,1930.6,6.23767196]
[1688175439765,6.05247391,1930.7,1930.6,5.07262149]
[1688175440170,6.05247391,1930.7,1930.6,0.41162149]
[1688175440361,6.05247391,1930.7,1930.5,4.639]
[1688175440570,3.77528412,1930.6,1930.5,4.639]
[1688175440771,3.77528412,1930.6,1930.1,14.12770101]
[1688175440772,9.02658358,1930.6,1930.1,4.98670101]
[1688175441068,3.2078,1930.3,1930.1,4.98670101]
[1688175441272,0.59763635,1930.2,1930.1,4.98670101]
[1688175441570,1.16512047,1930.2,1930.1,4.98670101]
[1688175442171,1.16512047,1930.2,1930.0,4.639]
[1688175442368,3.2078,1930.1,1930.0,4.639]
[1688175442567,3.51874,1930.1,1930.0,4.94995]
[1688175442965,3.51874,1930.1,1930.0,5.372047]
[1688175443172,3.51874,1930.1,1930.0,5.061097]
[1688175443366,3.51874,1930.1,1930.0,3.824597]
[1688175445069,3.51874,1930.1,1930.0,1.01976335]
[1688175445266,0.37741011,1930.1,1930.0,1.01976335]
[1688175446672,0.37741011,1930.1,1930.0,5.68776335]
[1688175447671,0.66412646,1930.1,1930.0,5.401047]
[1688175448071,0.66412646,1930.1,1930.0,5.68776335]
[1688175448266,3.87192646,1930.1,1930.0,5.68776335]
[1688175449368,0.06647011,1930.1,1930.0,5.68776335]
[1688175449568,0.06647011,1930.1,1930.0,5.79176335]
[1688175449773,0.00777182,1930.2,1930.1,0.67148412]
[1688175450070,0.00777182,1930.2,1930.1,5.65042412]
[1688175451471,3.2078,1930.5,1930.1,10.30142412]
[1688175451774,3.2078,1930.5,1930.4,4.97889]
[1688175451972,0.31086,1930.6,1930.4,5.54637412]
[1688175452172,0.31086,1930.6,1930.5,5.22058635]
[1688175453072,0.59757635,1930.6,1930.5,5.22058635]
[1688175453264,0.59757635,1930.6,1930.5,4.93387]
[1688175454069,0.31086,1930.6,1930.5,5.22058635]
[1688175456173,1.23618058,1930.8,1930.5,5.22058635]
[1688175456371,0.31083,1930.8,1930.7,4.661]
[1688175456570,0.31083,1930.8,1930.7,4.97184]
[1688175456774,3.98496,1930.9,1930.7,5.25855635]
[1688175456971,3.98496,1930.9,1930.8,4.623]
[1688175457176,4.21900432,1930.9,1930.8,4.93383]
[1688175457672,4.21900432,1930.9,1930.8,5.50131412]
[1688175459270,4.50572067,1930.9,1930.8,4.93383]
[1688175459672,4.21900432,1930.9,1930.8,4.93383]
[1688175460778,1.01120432,1930.9,1930.8,4.93383]
[1688175462980,1.29792067,1930.9,1930.8,4.93383]
[1688175463177,1.01120432,1930.9,1930.8,4.93383]
[1688175472592,4.50572067,1930.9,1930.8,4.668]
[1688175472885,4.50572067,1930.9,1930.8,0.31084]
[1688175472886,9.16472067,1930.9,1930.8,0.31084]
[1688175473095,16.82198085,1930.9,1930.8,0.31084]
[1688175475184,6.88227125,1930.9,1930.8,0.31084]
[1688175475495,5.95692067,1930.9,1930.8,0.31084]
[1688175475983,9.16472067,1930.9,1930.8,0.31084]
[1688175476185,10.09007125,1930.9,1930.8,0.31084]
[1688175477888,16.83098085,1930.9,1930.7,0.41848641]
[1688175478089,0.31084,1930.7,1930.5,5.60053]
[1688175478286,3.51866,1930.6,1930.5,5.60053]
[1688175478487,4.46427385,1930.6,1930.5,5.60053]
[1688175479085,4.46427385,1930.6,1930.5,5.88724635]
[1688175480489,4.46427385,1930.6,1930.5,5.60053]
[1688175482195,4.46427385,1930.6,1930.5,0.93253]
[1688175483500,4.46427385,1930.6,1930.5,1.21924635]
[1688175485900,4.46427385,1930.6,1930.5,0.93253]
[1688175486194,9.13227385,1930.6,1930.4,0.31088]
[1688175486701,5.10290808,1930.6,1930.4,5.25859635]
[1688175486902,3.61007338,1930.6,1930.4,5.25859635]
[1688175487301,3.89678973,1930.6,1930.4,5.25859635]
[1688175488401,3.89678973,1930.6,1930.4,4.97188]
[1688175488704,0.56748412,1930.5,1930.4,4.97188]
[1688175489005,0.95821555,1930.5,1930.4,4.97188]
[1688175491704,0.39073143,1930.5,1930.4,5.36259635]
[1688175495006,0.39073143,1930.5,1930.4,5.34059635]
[1688175499808,0.67744778,1930.5,1930.4,5.34059635]
[1688175500001,0.39073143,1930.5,1930.4,5.34059635]
[1688175500410,0.67744778,1930.5,1930.4,5.34059635]
[1688175500601,0.39073143,1930.5,1930.4,5.34059635]
[1688175501297,0.07984143,1930.5,1930.4,5.34059635]
[1688175501603,0.39073143,1930.5,1930.4,5.23659635]
[1688175501802,3.88524778,1930.5,1930.4,0.31088]
[1688175502206,11.54250796,1930.5,1930.4,0.31088]
[1688175503305,11.54250796,1930.5,1930.3,5.08503455]
[1688175503602,5.53839412,1930.4,1930.3,0.72795455]
[1688175503804,12.27030372,1930.4,1930.3,0.31092]
[1688175503999,12.3656542,1930.4,1930.3,0.31092]
[1688175504405,13.29100478,1930.4,1930.3,0.31092]
[1688175506112,13.29100478,1930.4,1930.2,1.03642]
[1688175506316,3.5187,1930.3,1930.2,1.03642]
[1688175506506,3.90085106,1930.3,1930.2,0.31091]
[1688175506915,3.90085106,1930.3,1930.1,15.28333]
[1688175507118,0.56748412,1930.2,1930.1,15.28333]
[1688175507421,0.87841412,1930.2,1930.1,15.69958159]
[1688175507612,0.97388252,1930.2,1930.1,15.69958159]
[1688175508319,0.97388252,1930.2,1930.1,5.83258159]
[1688175509022,0.87841412,1930.2,1930.1,5.83258159]
[1688175510223,0.87841412,1930.2,1930.1,6.11929794]
[1688175510929,0.31093,1930.2,1930.1,6.11929794]
[1688175512125,0.31093,1930.2,1930.1,6.14829794]
[1688175516727,1.0,1930.2,1930.1,6.14829794]
[1688175516918,1.0,1930.2,1930.1,6.25229794]
[1688175517834,1.31092,1930.2,1930.1,6.25229794]
[1688175518133,1.59763635,1930.2,1930.1,5.86158159]
[1688175518925,1.59763635,1930.2,1930.1,6.14829794]
[1688175519526,1.59763635,1930.2,1930.1,5.86158159]
[1688175521327,1.59763635,1930.2,1930.1,6.14829794]
[1688175521528,1.31092,1930.2,1930.1,6.14829794]
[1688175525635,1.59763635,1930.2,1930.1,6.14829794]
[1688175526331,1.31092,1930.2,1930.1,6.14829794]
[1688175532942,1.59763635,1930.2,1930.1,6.14829794]
[1688175534140,1.59763635,1930.2,1930.1,5.86158159]
[1688175537643,1.59763635,1930.2,1930.1,6.14829794]
[1688175542635,1.59763635,1930.2,1930.1,5.86158159]
[1688175544343,1.59763635,1930.2,1930.1,6.14829794]
[1688175544749,1.31092,1930.2,1930.1,6.14829794]
[1688175546648,1.59763635,1930.2,1930.1,6.14829794]
[1688175546945,1.59763635,1930.2,1930.1,5.86158159]
[1688175548147,1.31092,1930.2,1930.1,6.14829794]
[1688175548951,1.59763635,1930.2,1930.1,5.86158159]
[1688175550753,9.47343635,1930.2,1930.1,0.41625159]
[1688175550960,10.39878693,1930.2,1930.1,0.41625159]
[1688175551252,10.39878693,1930.2,1930.1,0.09616457]
[1688175551452,9.47343635,1930.2,1930.1,0.09616457]
[1688175551650,9.47343635,1930.2,1929.9,0.31874182]
[1688175551855,3.2078,1930.0,1929.9,0.73479575]
[1688175552055,8.46546635,1930.0,1929.9,0.31874182]
[1688175552351,9.39081693,1930.0,1929.9,0.31874182]
[1688175552752,8.46546635,1930.0,1929.9,0.31874182]
[1688175553148,9.39081693,1930.0,1929.9,0.31874182]
[1688175560455,8.46546635,1930.0,1929.9,0.31874182]
[1688175561161,8.46546635,1930.0,1929.9,0.4064609]
[1688175568560,8.46546635,1930.0,1929.9,0.0954909]
[1688175569956,8.55746635,1930.0,1929.9,0.0954909]
[1688175570359,9.48281693,1930.0,1929.9,0.11830824]
[1688175570565,9.48281693,1930.0,1929.9,0.17776711]
[1688175571267,9.38081693,1930.0,1929.9,0.17776711]
[1688175573957,1.23630058,1930.0,1929.9,0.77545346]
[1688175574162,0.31095,1930.0,1929.9,0.71053364]
[1688175575666,0.59766635,1930.0,1929.9,0.71053364]
[1688175576471,0.59766635,1930.0,1929.9,0.42381729]
[1688175577967,0.59766635,1930.0,1929.9,0.38313711]
[1688175578167,0.59766635,1930.0,1929.9,0.31874182]
[1688175581672,0.59766635,1930.0,1929.9,0.60545817]
[1688175581875,0.31095,1930.0,1929.9,0.60545817]
[1688175582176,0.31095,1930.0,1929.9,5.22845817]
[1688175583875,0.59766635,1930.0,1929.9,5.22845817]
[1688175584072,0.59766635,1930.0,1929.9,4.94174182]
[1688175584273,0.31095,1930.0,1929.9,5.22845817]
[1688175584875,0.59766635,1930.0,1929.9,5.22845817]
[1688175587680,0.59766635,1930.0,1929.9,4.94174182]
[1688175587872,0.59766635,1930.0,1929.9,5.00296531]
[1688175588071,0.59766635,1930.0,1929.9,4.94174182]
[1688175588375,0.31095,1930.0,1929.9,5.22845817]
[1688175589274,0.59766635,1930.0,1929.9,5.22845817]
[1688175589769,0.59766635,1930.0,1929.9,4.94174182]
[1688175591181,0.59766635,1930.0,1929.9,5.22845817]
[1688175592082,0.59766635,1930.0,1929.9,5.30010026]
[1688175593279,0.31095,1930.0,1929.9,5.30010026]
[1688175593679,0.31095,1930.0,1929.9,5.22845817]
[1688175595881,0.59766635,1930.0,1929.9,5.22845817]
[1688175596186,0.59766635,1930.0,1929.9,5.2994552]
[1688175597190,0.31095,1930.0,1929.9,5.2994552]
[1688175597589,0.31095,1930.0,1929.9,5.22845817]
[1688175598690,0.59766635,1930.0,1929.9,4.94174182]
[1688175599192,0.59766635,1930.0,1929.9,5.01383444]
[1688175601985,3.80546635,1930.0,1929.9,5.01383444]
[1688175602181,3.80546635,1930.0,1929.9,0.39083444]
[1688175602384,4.73081693,1930.0,1929.9,0.39083444]
[1688175603186,3.80546635,1930.0,1929.9,0.39083444]
[1688175603387,3.80546635,1930.0,1929.9,0.07986444]
[1688175603895,8.45546635,1930.0,1929.9,0.07986444]
[1688175604088,15.19718752,1930.0,1929.9,0.07986444]
[1688175605993,15.19718752,1930.0,1929.9,0.21310206]
[1688175607498,15.19718752,1930.0,1929.3,0.31106]
[1688175607499,20.7475381,1930.0,1929.3,0.31106]
[1688175607697,4.752,1929.4,1929.1,0.77768]
[1688175607895,4.752,1929.4,1929.2,0.77768]
[1688175607896,0.41306,1929.4,1929.2,0.77768]
[1688175608197,4.97906,1929.3,1929.2,0.77768]
[1688175608387,5.83326047,1929.3,1929.2,0.77768]
[1688175611994,5.83327047,1929.3,1929.2,0.77768]
[1688175612195,9.04107047,1929.3,1929.2,0.77768]
[1688175613092,9.04107047,1929.3,1929.1,0.7257038]
[1688175613291,4.66,1929.2,1929.1,0.31885504]
[1688175613501,4.97111,1929.2,1929.1,0.31885504]
[1688175614898,4.97111,1929.2,1929.1,0.62550097]
[1688175615905,5.07311,1929.2,1929.1,0.31442097]
[1688175616402,0.41312,1929.1,1929.0,0.31113]
[1688175616607,9.14312047,1929.1,1929.0,0.31113]
[1688175617598,9.14312047,1929.1,1928.9,0.00777585]
[1688175617791,4.65,1929.0,1928.9,0.31892585]
[1688175617996,4.96114,1929.0,1928.9,0.31892585]
[1688175618197,4.96114,1929.0,1928.9,0.00777585]
[1688175618395,5.06314,1929.0,1928.9,0.31892585]
[1688175619499,5.06314,1929.0,1928.4,4.14146]
[1688175619706,3.3098,1928.8,1928.6,0.31119]
[1688175620000,5.25790635,1928.7,1928.6,0.31119]
[1688175620507,5.82539047,1928.7,1928.6,0.31119]
[1688175623302,8.17897,1928.8,1928.6,0.31119]
[1688175623498,5.25788635,1928.8,1928.6,0.31119]
[1688175624008,5.25788635,1928.8,1928.7,0.34961233]
[1688175624301,5.25788635,1928.8,1928.7,0.31118]
[1688175624498,5.25788635,1928.8,1928.7,0.65003896]
[1688175624698,5.25788635,1928.8,1928.7,0.31118]
[1688175624900,5.25788635,1928.8,1928.7,0.65002436]
[1688175625498,5.67874218,1928.8,1928.7,0.65002436]
[1688175626104,4.97112,1929.0,1928.7,6.14322483]
[1688175626301,5.59235,1929.1,1928.8,4.661]
[1688175626505,3.98556,1929.2,1929.0,4.623]
[1688175626506,0.77776,1929.2,1929.0,4.623]
[1688175626804,4.97009,1929.3,1929.1,0.31109]
[1688175627006,5.25680635,1929.3,1929.1,0.55142795]
[1688175627203,5.39263861,1929.3,1929.1,0.8381443]
[1688175627402,4.97009,1929.3,1929.1,0.8381443]
[1688175627603,4.97009,1929.3,1929.2,0.56748412]
[1688175627802,4.97009,1929.3,1929.2,0.87855412]
[1688175627999,5.25680635,1929.3,1929.2,0.87855412]
[1688175628804,1.77375259,1929.4,1929.2,5.54655412]
[1688175628805,0.00777504,1929.4,1929.2,5.54655412]
[1688175629103,0.00777504,1929.4,1929.3,5.25877635]
[1688175630007,8.18676,1930.0,1929.4,0.56748412]
[1688175630311,8.18676,1930.0,1929.7,4.668]
[1688175630507,8.18676,1930.0,1929.8,1.16518047]
[1688175630808,8.5915144,1930.0,1929.8,1.16518047]
[1688175631006,8.87823075,1930.0,1929.8,1.16518047]
[1688175631602,8.87823075,1930.0,1929.8,0.31098]
[1688175631807,4.96996,1929.9,1929.8,0.31098]
[1688175632403,5.53744412,1929.9,1929.8,0.31098]
[1688175632602,5.54058891,1929.9,1929.8,0.31098]
[1688175634506,5.54058891,1929.9,1929.8,0.59769635]
[1688175635207,0.88158891,1929.9,1929.8,5.23669635]
[1688175635411,0.31410479,1929.9,1929.8,5.23669635]
[1688175637012,0.60082114,1929.9,1929.8,5.23669635]
[1688175637406,0.60082114,1929.9,1929.8,4.94998]
[1688175639704,0.31410479,1929.9,1929.8,5.23669635]
[1688175639911,0.00314479,1929.9,1929.8,5.34069635]
[1688175640212,0.00314479,1929.9,1929.8,13.17849635]
[1688175640606,0.00777242,1930.1,1929.8,13.17849635]
[1688175640811,0.00777242,1930.1,1930.0,4.93395]
[1688175641009,0.42183029,1930.1,1930.0,5.32466635]
[1688175641212,0.00777242,1930.1,1930.0,5.32466635]
[1688175641512,0.32186356,1930.1,1930.0,5.22066635]
[1688175641717,0.60857991,1930.1,1930.0,4.93395]
[1688175641910,0.60857991,1930.1,1930.0,5.22066635]
[1688175642608,0.32186356,1930.1,1930.0,5.22066635]
[1688175643009,0.01093356,1930.1,1930.0,5.32466635]
[1688175649017,0.29764991,1930.1,1930.0,5.22066635]
[1688175649329,0.29764991,1930.1,1930.0,4.93395]
[1688175649330,0.60857991,1930.1,1930.0,4.93395]
[1688175649718,0.60857991,1930.1,1930.0,5.22066635]
[1688175650424,0.32186356,1930.1,1930.0,5.22066635]
[1688175650727,0.60857991,1930.1,1930.0,5.22066635]
[1688175651123,0.60857991,1930.1,1930.0,4.93395]
[1688175651422,0.75584161,1930.1,1930.0,4.93395]
[1688175651619,0.75584161,1930.1,1930.0,5.22066635]
[1688175652123,0.75584161,1930.1,1930.0,4.93395]
[1688175652822,0.75584161,1930.1,1930.0,5.22066635]
[1688175653920,0.75584161,1930.1,1930.0,5.63211361]
[1688175654218,0.75584161,1930.1,1930.0,5.34539726]
[1688175654420,0.75584161,1930.1,1929.9,4.668]
[1688175654621,0.56748412,1930.0,1929.9,4.97897]
[1688175654922,0.97164357,1930.0,1929.9,4.97897]
[1688175655525,0.9748014,1930.0,1929.9,4.97897]
[1688175656926,0.9748014,1930.0,1929.9,5.26568635]
[1688175659229,0.09635728,1930.0,1929.9,5.25868635]
[1688175659927,0.09635728,1930.0,1929.9,5.36268635]
[1688175664530,0.09635728,1930.0,1929.9,5.25868635]
[1688175664733,0.69403363,1930.0,1929.9,5.25868635]
[1688175664934,0.69403363,1930.0,1929.9,4.97197]
[1688175665229,0.40731728,1930.0,1929.9,5.25868635]
[1688175665532,0.09635728,1930.0,1929.9,5.25868635]
[1688175666730,0.38307363,1930.0,1929.9,5.25868635]
[1688175667033,0.09635728,1930.0,1929.9,5.25868635]
[1688175670333,0.09635728,1930.0,1929.9,8.46648635]
[1688175673637,0.06833634,1930.0,1929.9,8.57048635]
[1688175673935,0.1887882,1930.0,1929.9,8.57048635]
[1688175674134,0.00777242,1930.1,1929.9,8.57048635]
[1688175674436,1.0,1930.2,1930.1,0.31095]
[1688175674735,1.0,1930.2,1930.1,5.22066635]
[1688175675134,1.0,1930.2,1930.1,8.42846635]
[1688175677035,1.0,1930.2,1930.1,8.53246635]
[1688175681234,1.14899128,1930.2,1930.1,8.53246635]
[1688175681431,0.14899843,1930.2,1930.1,8.53246635]
[1688175681734,0.15206499,1930.2,1930.1,8.53246635]
[1688175682242,0.00777142,1930.3,1930.1,8.53246635]
[1688175682243,1.33325666,1930.6,1930.3,4.668]
[1688175682434,0.40639831,1930.6,1930.5,4.623]
[1688175682737,11.44569835,1930.7,1930.5,5.22058635]
[1688175682939,11.44569835,1930.7,1930.6,4.97886]
[1688175683129,11.7324147,1930.7,1930.6,4.97886]
[1688175683330,11.44569835,1930.7,1930.6,4.97886]
[1688175683639,11.52026796,1930.7,1930.6,4.97886]
[1688175684341,11.92936121,1930.7,1930.6,4.97886]
[1688175684540,11.92936121,1930.7,1930.6,5.54634412]
[1688175685135,1.41052121,1930.7,1930.6,5.54634412]
[1688175685334,0.48366286,1930.7,1930.6,5.54634412]
[1688175685535,0.53776767,1930.7,1930.6,5.54634412]
[1688175685736,0.57826742,1930.7,1930.6,5.54634412]
[1688175686536,0.58126883,1930.7,1930.6,5.54634412]
[1688175687137,0.17217558,1930.7,1930.6,5.54634412]
[1688175687540,0.239645,1930.7,1930.6,5.54634412]
[1688175687940,0.52636135,1930.7,1930.6,5.54634412]
[1688175688148,0.239645,1930.7,1930.6,4.97886]
[1688175694038,0.239645,1930.7,1930.6,5.39929614]
[1688175714056,0.52636135,1930.7,1930.6,5.39929614]
[1688175714354,0.239645,1930.7,1930.6,5.39929614]
[1688175725061,0.52636135,1930.7,1930.6,5.39929614]
[1688175725265,0.83720135,1930.7,1930.6,4.668]
[1688175725458,3.98252441,1930.7,1930.6,4.668]